bitfinex-derivatives/quotes_BTCF0:USTF0_20250928
["timestamp","ask_amount","ask_price","bid_price","bid_amount"]
[1759080966543,1.20288,110340.0,110330.0,0.8044402]
[1759080967042,1.27393367,110340.0,110330.0,0.8044402]
[1759080967244,0.4753055,110340.0,110330.0,0.8044402]
[1759080968045,0.4793055,110340.0,110330.0,0.8044402]
[1759080969645,0.4853055,110340.0,110330.0,0.8044402]
[1759080970345,0.4833055,110340.0,110330.0,0.8044402]
[1759080970546,0.4803055,110340.0,110330.0,0.8044402]
[1759080970848,0.1195055,110340.0,110330.0,1.1652402]
[1759080975953,0.1195055,110340.0,110330.0,0.8044402]
[1759080976154,0.4803055,110340.0,110330.0,0.8044402]
[1759080976355,0.4803055,110340.0,110330.0,0.4654216]
[1759080977850,0.50262817,110340.0,110330.0,0.4654216]
[1759080979958,0.14182817,110340.0,110330.0,0.4654216]
[1759080981565,0.50262817,110340.0,110330.0,0.4654216]
[1759080982065,0.14182817,110340.0,110330.0,0.4654216]
[1759080983966,0.50262817,110340.0,110330.0,0.4654216]
[1759080984266,0.14182817,110340.0,110330.0,0.4654216]
[1759080985272,0.14182817,110340.0,110330.0,0.8044402]
[1759080986079,0.14182817,110340.0,110330.0,0.4654216]
[1759080986279,1.33224197,110340.0,110330.0,0.126403]
[1759080986479,1.7099209,110340.0,110330.0,0.4296216]
[1759080986679,1.6193257,110340.0,110330.0,0.4296216]
[1759080986878,1.3709023,110340.0,110330.0,0.090603]
[1759080987078,1.3709023,110340.0,110330.0,0.4296216]
[1759080991077,1.7099209,110340.0,110320.0,0.01335]
[1759080991273,1.66447233,110330.0,110310.0,0.1039627]
[1759080991469,0.8001095,110320.0,110310.0,0.4429813]
[1759080991669,0.7644316,110320.0,110310.0,0.4429813]
[1759080991876,0.7644316,110320.0,110310.0,0.4651213]
[1759080992181,0.8550425,110320.0,110310.0,0.4651213]
[1759080993684,0.82243217,110320.0,110310.0,0.4681213]
[1759080993980,0.82243217,110320.0,110310.0,0.4701213]
[1759081000981,0.39280267,110320.0,110310.0,0.4701213]
[1759081001186,0.03200267,110320.0,110310.0,0.8091399]
[1759081001383,0.03200267,110320.0,110310.0,1.5699399]
[1759081001384,0.02232267,110320.0,110310.0,1.5699399]
[1759081001588,0.4753055,110340.0,110330.0,0.125613]
[1759081001784,0.4753055,110340.0,110330.0,0.8036502]
[1759081001785,1.32930311,110340.0,110330.0,0.8036502]
[1759081002183,0.96850311,110340.0,110330.0,0.8036502]
[1759081002384,0.13686311,110340.0,110330.0,0.8036502]
[1759081002886,0.49966311,110340.0,110330.0,0.8036502]
[1759081003086,0.50266311,110340.0,110330.0,0.8036502]
[1759081003584,0.59325891,110340.0,110330.0,0.4646316]
[1759081013095,1.33402311,110340.0,110330.0,0.8036502]
[1759081013393,0.13218311,110340.0,110330.0,0.8036502]
[1759081013785,0.13218311,110340.0,110330.0,1.1644502]
[1759081014080,0.09841128,110340.0,110330.0,1.1644502]
[1759081014386,0.1316975,110340.0,110330.0,1.1644502]
[1759081014782,0.09841128,110340.0,110330.0,1.1644502]
[1759081015693,0.02735761,110340.0,110330.0,1.1644502]
[1759081017392,0.02735761,110340.0,110330.0,1.5644502]
[1759081017993,0.005,110340.0,110330.0,1.5644502]
[1759081019295,0.07801047,110340.0,110330.0,1.5644502]
[1759081019497,0.005,110340.0,110330.0,1.5644502]
[1759081021692,1e-07,110340.0,110330.0,1.5644502]
[1759081022298,1e-07,110340.0,110330.0,1.5638073]
[1759081022488,0.3608,110360.0,110350.0,0.1247875]
[1759081022693,0.42558402,110360.0,110350.0,0.46348465]
[1759081023403,0.49721899,110360.0,110350.0,0.1247875]
[1759081023588,0.49721899,110360.0,110350.0,0.46348465]
[1759081023787,0.50621899,110360.0,110350.0,0.46348465]
[1759081024194,0.51021899,110360.0,110350.0,0.46348465]
[1759081025296,0.14941899,110360.0,110350.0,0.46348465]
[1759081025500,0.51021899,110360.0,110350.0,0.46348465]
[1759081025899,0.14941899,110360.0,110350.0,0.46348465]
[1759081027902,0.14941899,110360.0,110350.0,0.1247875]
[1759081028094,0.51021899,110360.0,110350.0,0.46348465]
[1759081031397,1.24891614,110360.0,110350.0,0.1247875]
[1759081032098,0.91021899,110360.0,110350.0,0.46348465]
[1759081032297,1.34109899,110360.0,110350.0,0.46348465]
[1759081032502,0.51021899,110360.0,110350.0,0.46348465]
[1759081033796,0.54282932,110360.0,110350.0,0.46348465]
[1759081035302,0.5918107,110360.0,110350.0,0.46348465]
[1759081035604,0.54282932,110360.0,110350.0,0.46348465]
[1759081036303,0.5828107,110360.0,110350.0,0.46348465]
[1759081036505,0.5868107,110360.0,110350.0,0.46348465]
[1759081037204,0.5848107,110360.0,110350.0,0.46348465]
[1759081038105,0.5808107,110360.0,110350.0,0.46348465]
[1759081038303,0.5848107,110360.0,110350.0,0.46348465]
[1759081038806,0.53582932,110360.0,110350.0,0.46348465]
[1759081039505,0.5848107,110360.0,110350.0,0.46348465]
[1759081041505,0.5828107,110360.0,110350.0,0.46348465]
[1759081042209,0.54820037,110360.0,110350.0,0.46348465]
[1759081042508,0.55220037,110360.0,110350.0,0.46348465]
[1759081043604,0.13259773,110360.0,110350.0,1.22428465]
[1759081043805,0.00294612,110360.0,110350.0,1.22428465]
[1759081044004,0.06925526,110370.0,110360.0,0.1270384]
[1759081044203,0.03259954,110370.0,110360.0,1.9958727]
[1759081044504,1.3421108,110380.0,110370.0,0.1270301]
[1759081044807,1.3421108,110380.0,110370.0,0.8044244]
[1759081045211,0.5114708,110380.0,110370.0,0.8044244]
[1759081045407,0.47887126,110380.0,110370.0,0.8044244]
[1759081045709,0.48587126,110380.0,110370.0,0.8044244]
[1759081047413,0.47619126,110380.0,110370.0,0.8044244]
[1759081048005,0.48587126,110380.0,110370.0,0.8044244]
[1759081048711,0.48587126,110380.0,110370.0,0.1270301]
[1759081048905,0.48587126,110380.0,110370.0,0.8044244]
[1759081049813,0.08928004,110380.0,110370.0,1.1652244]
[1759081051912,0.08928004,110380.0,110370.0,1.9957044]
[1759081053212,0.08928004,110380.0,110370.0,1.3183101]
[1759081053413,0.08928004,110380.0,110370.0,1.9957044]
[1759081053717,0.07960004,110380.0,110370.0,1.9957044]
[1759081054408,0.11651051,110380.0,110370.0,1.9957044]
[1759081055318,0.11651051,110380.0,110370.0,1.9956244]
[1759081055620,0.12619051,110380.0,110370.0,1.1652244]
[1759081055814,0.12619051,110380.0,110370.0,1.9955844]
[1759081056014,0.14833224,110380.0,110370.0,1.9955844]
[1759081056214,0.14833224,110380.0,110370.0,1.1652244]
[1759081056412,0.14833224,110380.0,110370.0,1.9955844]
[1759081057016,0.14833224,110380.0,110370.0,1.1652244]
[1759081057315,0.14833224,110380.0,110370.0,1.6347844]
[1759081057706,0.14833224,110380.0,110370.0,1.29608725]
[1759081058016,0.14833224,110380.0,110370.0,0.46572725]
[1759081058216,0.14833224,110380.0,110370.0,1.29604725]
[1759081059417,0.14833224,110380.0,110370.0,0.1270301]
[1759081059620,0.14833224,110380.0,110370.0,1.29604725]
[1759081062019,0.13865224,110380.0,110370.0,1.29604725]
[1759081062415,0.13865224,110380.0,110370.0,1.6347444]
[1759081065329,0.13865224,110380.0,110370.0,1.29604725]
[1759081066324,0.13865224,110380.0,110370.0,1.6347444]
[1759081069923,0.14833224,110380.0,110370.0,1.6345844]
[1759081070224,0.14833224,110380.0,110370.0,0.1270301]
[1759081070225,0.84782939,110380.0,110370.0,0.1270301]
[1759081070422,0.88042893,110380.0,110370.0,0.1270301]
[1759081070638,0.84782939,110380.0,110370.0,0.1270301]
[1759081071128,0.88042893,110380.0,110370.0,0.1270301]
[1759081072923,1.71054893,110380.0,110370.0,0.1270301]
[1759081073719,1.72693077,110380.0,110370.0,0.1270301]
[1759081074028,1.42514506,110380.0,110370.0,0.0905701]
[1759081074233,2.25526506,110380.0,110370.0,0.0905701]
[1759081075115,2.18998252,110380.0,110370.0,0.0905701]
[1759081075316,2.18995182,110380.0,110370.0,0.0905701]
[1759081079739,1.35983182,110380.0,110370.0,0.1135201]
[1759081079931,2.18991182,110380.0,110370.0,0.1274501]
[1759081080534,2.18991182,110380.0,110370.0,0.0905701]
[1759081081034,2.18989671,110380.0,110370.0,0.0905701]
[1759081082237,2.52865668,110380.0,110370.0,0.0905701]
[1759081083738,2.61006601,110380.0,110370.0,0.0905701]
[1759081087241,0.1002514,110370.0,110360.0,0.1042445]
[1759081087542,0.85443625,110370.0,110360.0,0.44297306]
[1759081088342,0.85443625,110370.0,110360.0,0.1042445]
[1759081088640,0.51570769,110370.0,110360.0,0.1042445]
[1759081088846,1.59382485,110370.0,110360.0,0.46592306]
[1759081089149,0.76386485,110370.0,110360.0,0.46592306]
[1759081089338,0.76686485,110370.0,110360.0,0.46592306]
[1759081089534,1.59682485,110370.0,110360.0,0.46592306]
[1759081090147,0.39557592,110370.0,110360.0,1.20465162]
[1759081090346,0.02509592,110370.0,110360.0,1.54338018]
[1759081090539,0.03477592,110370.0,110360.0,0.5271945]
[1759081090742,0.39557592,110370.0,110360.0,1.20465162]
[1759081091049,0.39557592,110370.0,110360.0,0.80465162]
[1759081095560,0.73430448,110370.0,110360.0,0.80465162]
[1759081095858,0.73430448,110370.0,110360.0,0.1271945]
[1759081096059,0.73430448,110370.0,110360.0,0.46592306]
[1759081098162,1.56422448,110370.0,110360.0,0.46592306]
[1759081099162,1.56418448,110370.0,110360.0,0.46592306]
[1759081100258,1.22545592,110370.0,110360.0,0.46592306]
[1759081100459,1.56418448,110370.0,110360.0,0.46592306]
[1759081103773,1.56418448,110370.0,110360.0,0.80465162]
[1759081104070,0.39557592,110370.0,110360.0,0.80465162]
[1759081104278,1.22541592,110370.0,110360.0,0.80465162]
[1759081105471,0.86461592,110370.0,110360.0,0.80465162]
[1759081109575,0.02509592,110370.0,110360.0,0.80465162]
[1759081110173,0.02509592,110370.0,110360.0,1.16545162]
[1759081110373,0.02509592,110370.0,110360.0,0.80465162]
[1759081110673,0.02509592,110370.0,110360.0,1.16545162]
[1759081111068,0.02509592,110370.0,110360.0,0.80465162]
[1759081111272,1.67135944,110380.0,110370.0,0.1252305]
[1759081111273,0.10951051,110380.0,110370.0,0.1252305]
[1759081111573,0.04224037,110390.0,110380.0,0.1252223]
[1759081111765,0.04224037,110390.0,110380.0,0.80267942]
[1759081111766,0.87200037,110390.0,110380.0,0.80267942]
[1759081112577,0.83944,110390.0,110380.0,0.80267942]
[1759081112775,0.86969619,110390.0,110380.0,0.80267942]
[1759081113076,0.94366604,110390.0,110380.0,0.80267942]
[1759081113870,0.94666604,110390.0,110380.0,0.80267942]
[1759081116178,0.94366604,110390.0,110380.0,0.80367942]
[1759081117980,0.94366604,110390.0,110380.0,0.1262223]
[1759081118181,1.2823946,110390.0,110380.0,0.80367942]
[1759081118780,0.4526346,110390.0,110380.0,0.80367942]
[1759081118983,1.2822746,110390.0,110380.0,0.80367942]
[1759081119179,1.2822346,110390.0,110380.0,0.80367942]
[1759081119781,0.94350604,110390.0,110380.0,0.80367942]
[1759081120082,1.6430346,110390.0,110380.0,0.46495086]
[1759081123383,1.66510201,110390.0,110380.0,0.46495086]
[1759081123779,1.69766238,110390.0,110380.0,0.46495086]
[1759081130182,1.35893382,110390.0,110380.0,0.46495086]
[1759081130482,1.69766238,110390.0,110380.0,0.46495086]
[1759081131078,1.78821638,110390.0,110380.0,0.1262223]
[1759081131285,1.74650798,110390.0,110380.0,0.46495086]
[1759081132791,1.40777942,110390.0,110380.0,0.46495086]
[1759081133090,1.74650798,110390.0,110380.0,0.46495086]
[1759081133489,1.71394761,110390.0,110380.0,0.46495086]
[1759081133886,1.69767082,110390.0,110380.0,0.46495086]
[1759081135490,1.66510201,110390.0,110380.0,0.46495086]
[1759081138193,1.69767082,110390.0,110380.0,0.46495086]
[1759081140601,0.86807082,110390.0,110380.0,0.46495086]
[1759081141002,1.69735082,110390.0,110380.0,0.46495086]
[1759081141901,0.86807082,110390.0,110380.0,0.46495086]
[1759081142104,1.69735082,110390.0,110380.0,0.46495086]
[1759081143707,1.69731082,110390.0,110380.0,0.46495086]
[1759081144209,1.69716679,110390.0,110380.0,0.1262223]
[1759081144409,0.52934226,110390.0,110380.0,0.46480683]
[1759081144804,1.35854226,110390.0,110380.0,0.46480683]
[1759081145197,1.32597345,110390.0,110380.0,0.46480683]
[1759081145408,1.35854226,110390.0,110380.0,0.46480683]
[1759081147607,1.35854226,110390.0,110380.0,0.1262223]
[1759081148511,1.69712679,110390.0,110380.0,0.1262223]
[1759081149400,2.20395638,110390.0,110380.0,0.091561]
[1759081150914,2.20387638,110390.0,110380.0,0.091561]
[1759081152112,1.37475638,110390.0,110380.0,0.127171]
[1759081152314,2.20387638,110390.0,110380.0,0.127171]
[1759081152811,1.37475638,110390.0,110380.0,0.127171]
[1759081153004,2.20387638,110390.0,110380.0,0.127171]
[1759081155110,2.20387638,110390.0,110380.0,0.001]
[1759081158520,0.1002515,110370.0,110360.0,0.0905752]
[1759081158824,2.40378711,110370.0,110360.0,0.0905752]
[1759081159017,2.45263271,110370.0,110360.0,0.0905752]
[1759081159319,2.40378711,110370.0,110360.0,0.0905752]
[1759081159520,1.48413561,110370.0,110360.0,0.0905752]
[1759081159819,1.14555108,110370.0,110360.0,0.0905752]
[1759081160014,1.97459108,110370.0,110360.0,0.1129852]
[1759081160321,1.97459108,110370.0,110360.0,0.1199852]
[1759081160619,1.97459108,110370.0,110360.0,0.1229852]
[1759081161120,1.97463108,110370.0,110360.0,0.1363852]
[1759081164720,2.06520068,110370.0,110360.0,0.1363852]
[1759081164919,1.97463108,110370.0,110360.0,0.1363852]
[1759081165513,1.14555108,110370.0,110360.0,0.1363852]
[1759081165714,1.97459108,110370.0,110360.0,0.1363852]
[1759081166323,1.14555108,110370.0,110360.0,0.1363852]
[1759081166824,1.97459108,110370.0,110360.0,0.1363852]
[1759081167720,1.97459108,110370.0,110360.0,0.1139752]
[1759081168022,1.97459108,110370.0,110360.0,0.1363852]
[1759081168424,1.14555108,110370.0,110360.0,0.1363852]
[1759081168621,1.97459108,110370.0,110360.0,0.1363852]
[1759081168817,1.63600655,110370.0,110360.0,0.1363852]
[1759081169125,1.22158741,110370.0,110360.0,0.87496973]
[1759081169826,0.39254741,110370.0,110360.0,0.87496973]
[1759081170025,0.38286741,110370.0,110360.0,0.87496973]
[1759081170619,0.02206741,110370.0,110360.0,0.87496973]
[1759081172428,1.19948,110380.0,110370.0,0.1263799]
[1759081172628,1.22150474,110380.0,110370.0,0.46496443]
[1759081173125,0.38282474,110380.0,110370.0,1.20354896]
[1759081173526,0.38282474,110380.0,110370.0,1.20754896]
[1759081173928,0.38282474,110380.0,110370.0,0.86896443]
[1759081174128,0.39250474,110380.0,110370.0,0.86896443]
[1759081174426,0.39250474,110380.0,110370.0,0.86996443]
[1759081178434,0.39250474,110380.0,110370.0,1.20854896]
[1759081178627,0.03170474,110380.0,110370.0,1.20854896]
[1759081179333,0.03170474,110380.0,110370.0,0.86996443]
[1759081179529,0.03170474,110380.0,110370.0,0.46996443]
[1759081184136,0.03170474,110380.0,110370.0,0.1313799]
[1759081184335,0.03170474,110380.0,110370.0,0.46996443]
[1759081184523,0.02202474,110380.0,110370.0,0.46996443]
[1759081184922,0.03170474,110380.0,110370.0,0.46996443]
[1759081185434,0.02202474,110380.0,110370.0,0.46996443]
[1759081185838,0.02202474,110380.0,110370.0,0.80854896]
[1759081186235,0.02202474,110380.0,110370.0,1.56934896]
[1759081186436,0.46502604,110390.0,110380.0,0.1263717]
[1759081186741,0.48704449,110390.0,110380.0,0.46495623]
[1759081187036,0.12624449,110390.0,110380.0,0.46495623]
[1759081187227,0.05227464,110390.0,110380.0,0.46495623]
[1759081188336,0.05227464,110390.0,110380.0,0.46595623]
[1759081189437,0.05227464,110390.0,110380.0,1.29463623]
[1759081191841,0.05227464,110390.0,110380.0,1.69463623]
[1759081192743,0.03025619,110390.0,110380.0,1.69463623]
[1759081192938,0.4320542,110400.0,110390.0,0.1255335]
[1759081193234,0.45406321,110400.0,110390.0,0.46411803]
[1759081193435,0.4805432,110400.0,110390.0,0.46411803]
[1759081194332,0.4825432,110400.0,110390.0,0.46411803]
[1759081194844,0.411289,110400.0,110390.0,0.86411803]
[1759081195034,0.411289,110400.0,110390.0,1.69271803]
[1759081195542,0.411289,110400.0,110390.0,0.86411803]
[1759081195744,0.411289,110400.0,110390.0,1.69267803]
[1759081196745,0.411289,110400.0,110390.0,0.86411803]
[1759081197042,0.411289,110400.0,110390.0,1.69267803]
[1759081199545,0.411289,110400.0,110390.0,1.69263803]
[1759081199946,0.411289,110400.0,110390.0,0.86411803]
[1759081200246,0.411289,110400.0,110390.0,1.69263803]
[1759081201849,0.411289,110400.0,110390.0,1.69259803]
[1759081206458,0.411289,110400.0,110390.0,2.03089986]
[1759081207859,0.411289,110400.0,110390.0,2.03085986]
[1759081208155,0.411289,110400.0,110390.0,1.69241668]
[1759081208745,0.411289,110400.0,110390.0,1.69341668]
[1759081209159,0.409289,110400.0,110390.0,1.69341668]
[1759081209360,0.409289,110400.0,110390.0,1.69741668]
[1759081210355,0.418969,110400.0,110390.0,1.29737668]
[1759081212459,0.418969,110400.0,110390.0,0.46897668]
[1759081212658,0.418969,110400.0,110390.0,1.29737668]
[1759081213873,0.4515576,110400.0,110390.0,1.29737668]
[1759081214775,0.79000078,110400.0,110390.0,1.29733668]
[1759081215472,0.4515576,110400.0,110390.0,1.29733668]
[1759081215673,0.4418776,110400.0,110390.0,1.63577986]
[1759081216269,0.4907232,110400.0,110390.0,1.63577986]
[1759081216875,0.4907232,110400.0,110390.0,0.1305335]
[1759081217071,1.23884638,110400.0,110390.0,0.9588535]
[1759081217370,1.54470096,110400.0,110390.0,1.29729668]
[1759081217585,1.23885256,110400.0,110390.0,1.29729668]
[1759081217876,1.20625778,110400.0,110390.0,1.29729668]
[1759081218176,1.54470096,110400.0,110390.0,0.1305335]
[1759081218475,1.19000747,110400.0,110390.0,0.46897668]
[1759081219268,1.19000747,110400.0,110390.0,0.1305335]
[1759081219570,1.19000747,110400.0,110390.0,0.46897668]
[1759081219772,1.19000747,110400.0,110390.0,0.1305335]
[1759081220078,1.19000747,110400.0,110390.0,0.46897668]
[1759081220779,1.19000747,110400.0,110390.0,0.1305335]
[1759081220976,1.19000747,110400.0,110390.0,0.46897668]
[1759081221279,2.37302096,110400.0,110390.0,0.1305335]
[1759081221978,2.37342096,110400.0,110390.0,0.1305335]
[1759081222180,2.37342096,110400.0,110390.0,0.46897668]
[1759081223870,2.35717677,110400.0,110390.0,0.1305335]
[1759081224071,2.35721677,110400.0,110390.0,0.1305335]
[1759081225879,2.84110245,110400.0,110390.0,0.005]
[1759081226178,0.0905551,110390.0,110380.0,0.1039597]
[1759081226481,1.19253188,110390.0,110380.0,0.1039597]
[1759081226679,1.19253188,110390.0,110380.0,0.0905597]
[1759081227180,2.02117188,110390.0,110380.0,0.0905597]
[1759081227678,2.02113188,110390.0,110380.0,0.0905597]
[1759081227887,2.02109188,110390.0,110380.0,0.1175097]
[1759081228180,2.02109188,110390.0,110380.0,0.1311297]
[1759081228380,1.10197678,110390.0,110380.0,0.1311297]
[1759081228587,1.5923736,110390.0,110380.0,0.1311297]
[1759081228883,1.5923736,110390.0,110380.0,0.1331297]
[1759081230684,1.6829283,110390.0,110380.0,0.1331297]
[1759081231278,1.65032689,110390.0,110380.0,0.1331297]
[1759081233686,0.82148689,110390.0,110380.0,0.1331297]
[1759081233877,1.65032689,110390.0,110380.0,0.1331297]
[1759081234184,1.65024689,110390.0,110380.0,0.1331297]
[1759081237383,1.65024689,110390.0,110380.0,0.1111797]
[1759081237578,2.05024689,110390.0,110380.0,0.0975629]
[1759081238482,1.22100901,110390.0,110380.0,0.81001926]
[1759081239184,0.39248901,110390.0,110380.0,1.21001926]
[1759081239486,1.22124901,110390.0,110380.0,0.81001926]
[1759081239786,0.39248901,110390.0,110380.0,0.81001926]
[1759081240086,1.22120901,110390.0,110380.0,0.81001926]
[1759081240682,0.39248901,110390.0,110380.0,1.21001926]
[1759081240885,0.38280901,110390.0,110380.0,1.21001926]
[1759081241286,0.02200901,110390.0,110380.0,1.21001926]
[1759081241586,1.56404317,110400.0,110390.0,0.1261247]
[1759081241787,1.58604743,110400.0,110390.0,0.46456788]
[1759081242983,1.58604743,110400.0,110390.0,0.46556788]
[1759081243379,1.58604743,110400.0,110390.0,0.46756788]
[1759081246189,1.58604743,110400.0,110390.0,0.1291247]
[1759081246376,1.58604743,110400.0,110390.0,0.46756788]
[1759081246582,0.41896425,110400.0,110390.0,0.46756788]
[1759081246782,0.41896425,110400.0,110390.0,1.20601106]
[1759081247089,0.40928425,110400.0,110390.0,1.20601106]
[1759081248584,0.04848425,110400.0,110390.0,1.20601106]
[1759081248783,0.00842285,110400.0,110390.0,1.20601106]
[1759081248985,1.29630762,110410.0,110400.0,0.1262666]
[1759081249186,1.29630762,110410.0,110400.0,0.80315296]
[1759081249389,0.10686762,110410.0,110400.0,0.80315296]
[1759081250193,0.10786762,110410.0,110400.0,0.80315296]
[1759081251190,0.09818762,110410.0,110400.0,0.80315296]
[1759081251494,0.09918762,110410.0,110400.0,0.80315296]
[1759081253195,0.09918762,110410.0,110400.0,0.1262666]
[1759081253196,0.10886762,110410.0,110400.0,0.1262666]
[1759081253392,0.10886762,110410.0,110400.0,0.80315296]
[1759081254593,0.10886762,110410.0,110400.0,1.63375296]
[1759081255594,0.10886762,110410.0,110400.0,0.80315296]
[1759081255794,0.10886762,110410.0,110400.0,1.63363296]
[1759081256095,0.10886762,110410.0,110400.0,0.80315296]
[1759081256295,0.10886762,110410.0,110400.0,1.63351296]
[1759081256798,0.09918762,110410.0,110400.0,1.63351296]
[1759081257298,0.10886762,110410.0,110400.0,0.80315296]
[1759081257596,0.10886762,110410.0,110400.0,1.63339296]
[1759081258297,0.10886762,110410.0,110400.0,1.63323296]
[1759081260400,0.10886762,110410.0,110400.0,0.80315296]
[1759081260603,0.10886762,110410.0,110400.0,1.63287296]
[1759081260796,0.13077125,110410.0,110400.0,1.63287296]
[1759081261297,0.49157125,110410.0,110400.0,1.63287296]
[1759081261906,0.49157125,110410.0,110400.0,0.80315296]
[1759081262095,0.49157125,110410.0,110400.0,1.63283296]
[1759081262492,0.49157125,110410.0,110400.0,0.80315296]
[1759081262691,0.49157125,110410.0,110400.0,1.63283296]
[1759081263603,0.49157125,110410.0,110400.0,0.80315296]
[1759081263904,0.49157125,110410.0,110400.0,1.63283296]
[1759081264306,0.83001443,110410.0,110400.0,0.80315296]
[1759081264707,0.49157125,110410.0,110400.0,0.80315296]
[1759081265098,0.48189125,110410.0,110400.0,0.80315296]
[1759081265303,0.48189125,110410.0,110400.0,0.1262666]
[1759081265503,0.48189125,110410.0,110400.0,0.80315296]
[1759081266305,0.48189125,110410.0,110400.0,1.29446888]
[1759081266306,0.49157125,110410.0,110400.0,1.29446888]
[1759081266609,0.49157125,110410.0,110400.0,1.29438888]
[1759081269012,0.49157125,110410.0,110400.0,0.9559866]
[1759081269213,0.49160518,110410.0,110400.0,1.29438888]
[1759081270207,0.48192518,110410.0,110400.0,1.29438888]
[1759081270910,0.48192518,110410.0,110400.0,0.46466888]
[1759081271108,0.49160518,110410.0,110400.0,0.46466888]
[1759081271306,0.83000746,110410.0,110400.0,0.9557466]
[1759081271505,0.83000746,110410.0,110400.0,0.1262666]
[1759081271917,1.65960746,110410.0,110400.0,0.1262666]
[1759081277012,1.32120518,110410.0,110400.0,0.1262666]
[1759081278517,1.80352104,110410.0,110400.0,0.0905465]
[1759081278723,0.1002265,110400.0,110390.0,0.1257179]
[1759081278925,0.82136634,110400.0,110390.0,0.1257179]
[1759081279724,0.73081984,110400.0,110390.0,0.1257179]
[1759081279925,0.73081984,110400.0,110390.0,0.1267179]
[1759081280125,0.73081984,110400.0,110390.0,0.1287179]
[1759081283929,1.56121984,110400.0,110390.0,0.1287179]
[1759081284226,0.73081984,110400.0,110390.0,0.1287179]
[1759081284432,1.56105984,110400.0,110390.0,0.1287179]
[1759081285840,0.73081984,110400.0,110390.0,0.1287179]
[1759081286037,1.96085984,110400.0,110390.0,0.1287179]
[1759081287236,2.05140634,110400.0,110390.0,0.1287179]
[1759081287433,1.96113984,110400.0,110390.0,0.1071679]
[1759081287634,1.13081984,110400.0,110390.0,0.1071679]
[1759081287938,1.96113984,110400.0,110390.0,0.1071679]
[1759081288242,1.96117984,110400.0,110390.0,0.1287179]
[1759081290143,1.13081984,110400.0,110390.0,0.1287179]
[1759081290346,1.96089984,110400.0,110390.0,0.1287179]
[1759081290642,1.13081984,110400.0,110390.0,0.1287179]
[1759081290843,1.96081984,110400.0,110390.0,0.1287179]
[1759081291341,1.13081984,110400.0,110390.0,0.1287179]
[1759081291645,1.62237756,110400.0,110390.0,0.46712018]
[1759081292143,0.79241756,110400.0,110390.0,0.46712018]
[1759081292336,1.62257756,110400.0,110390.0,0.46712018]
[1759081292742,0.79241756,110400.0,110390.0,0.46712018]
[1759081293037,0.39241756,110400.0,110390.0,0.46712018]
[1759081293348,1.22249756,110400.0,110390.0,0.46712018]
[1759081295846,1.22221756,110400.0,110390.0,0.46712018]
[1759081296845,0.39241756,110400.0,110390.0,0.46712018]
[1759081297040,1.22217756,110400.0,110390.0,0.46712018]
[1759081301547,0.39241756,110400.0,110390.0,0.46712018]
[1759081301749,1.22173756,110400.0,110390.0,0.46712018]
[1759081302651,0.39241756,110400.0,110390.0,0.46712018]
[1759081302846,0.02193756,110400.0,110390.0,0.86712018]
[1759081303053,1.31879182,110410.0,110400.0,0.1253666]
[1759081303354,1.31879182,110410.0,110400.0,0.46376888]
[1759081303943,1.35139323,110410.0,110400.0,0.46376888]
[1759081304143,0.51255323,110410.0,110400.0,0.46376888]
[1759081304347,0.51255323,110410.0,110400.0,0.80217116]
[1759081304348,0.15175323,110410.0,110400.0,0.80217116]
[1759081304651,0.15275323,110410.0,110400.0,0.80217116]
[1759081305046,0.12015182,110410.0,110400.0,0.80217116]
[1759081305647,0.12115182,110410.0,110400.0,1.20217116]
[1759081307350,0.12115182,110410.0,110400.0,2.03117116]
[1759081308651,0.12115182,110410.0,110400.0,1.20217116]
[1759081309152,0.12115182,110410.0,110400.0,2.03085116]
[1759081311062,0.39340141,110430.0,110410.0,0.1267885]
[1759081311349,0.41447141,110430.0,110420.0,0.46518258]
[1759081312152,0.41547141,110430.0,110420.0,0.46518258]
[1759081312355,0.41947141,110430.0,110420.0,0.46518258]
[1759081312748,0.49064754,110430.0,110420.0,0.46518258]
[1759081312948,0.49164754,110430.0,110420.0,0.46518258]
[1759081313854,0.5352649,110430.0,110420.0,0.46518258]
[1759081314956,0.50266349,110430.0,110420.0,0.46518258]
[1759081315253,0.14186349,110430.0,110420.0,0.46518258]
[1759081316156,0.12079349,110430.0,110420.0,1.69370258]
[1759081317155,0.12079349,110430.0,110420.0,0.86518258]
[1759081317354,0.04861736,110430.0,110420.0,1.69370258]
[1759081317556,0.04861736,110430.0,110420.0,2.05450258]
[1759081318460,0.04861736,110430.0,110420.0,1.22598258]
[1759081318752,0.04861736,110430.0,110420.0,2.05446258]
[1759081320961,0.04861736,110430.0,110420.0,2.05442258]
[1759081323262,0.07038677,110430.0,110420.0,2.05442258]
[1759081324759,0.07038677,110430.0,110420.0,1.22598258]
[1759081325156,0.07038677,110430.0,110420.0,2.05438258]
[1759081326260,0.07038677,110430.0,110420.0,2.3924477]
[1759081327260,0.02876941,110430.0,110420.0,2.7306814]
[1759081329160,0.02876941,110430.0,110420.0,1.7159803]
[1759081329461,0.02876941,110430.0,110420.0,2.7306814]
[1759081329661,0.02876941,110430.0,110420.0,1.7159803]
[1759081329849,0.02876941,110430.0,110420.0,2.7306814]
[1759081333660,0.02876941,110430.0,110420.0,1.9022814]
[1759081333865,0.02876941,110430.0,110420.0,2.4026877]
[1759081334768,0.02876941,110430.0,110420.0,1.7262203]
[1759081334966,0.02876941,110430.0,110420.0,1.5640477]
[1759081335361,0.02876941,110430.0,110420.0,2.4026077]
[1759081335675,0.05166941,110430.0,110420.0,0.1267803]
[1759081335857,0.38990311,110430.0,110420.0,1.303534]
[1759081336057,0.38990311,110430.0,110420.0,0.465014]
[1759081336262,0.38990311,110430.0,110420.0,1.303494]
[1759081336657,0.38990311,110430.0,110420.0,1.6417277]
[1759081337268,0.38990311,110430.0,110420.0,0.9652603]
[1759081337467,0.38990311,110430.0,110420.0,1.6417277]
[1759081337667,0.05166941,110430.0,110420.0,0.9652603]
[1759081337967,0.05166941,110430.0,110420.0,1.6417277]
[1759081339168,0.05166941,110430.0,110420.0,1.303494]
[1759081339354,0.38990311,110430.0,110420.0,0.465014]
[1759081339556,1.24122391,110430.0,110420.0,0.1267803]
[1759081339756,1.15070311,110430.0,110420.0,1.303094]
[1759081340265,0.81246941,110430.0,110420.0,1.303094]
[1759081340464,0.81246941,110430.0,110420.0,1.6413277]
[1759081340665,0.81246941,110430.0,110420.0,0.9648603]
[1759081340862,0.81246941,110430.0,110420.0,1.6413277]
[1759081341569,1.16168311,110430.0,110420.0,1.304814]
[1759081342068,1.16168311,110430.0,110420.0,0.465014]
[1759081342259,1.19428452,110430.0,110420.0,1.304774]
[1759081342661,1.16168311,110430.0,110420.0,1.304774]
[1759081343364,1.19428452,110430.0,110420.0,1.304774]
[1759081343568,1.18330452,110430.0,110420.0,1.304774]
[1759081343769,1.18330452,110430.0,110420.0,0.9665403]
[1759081343958,1.15070311,110430.0,110420.0,1.304774]
[1759081344161,1.18330452,110430.0,110420.0,0.465014]
[1759081345970,0.1185208,110420.0,110410.0,0.0905362]
[1759081346276,1.21015902,110420.0,110410.0,0.0905362]
[1759081347467,1.21315902,110420.0,110410.0,0.0905362]